fUSD/lending_fUSD_20250308
["ID","MTS","AMOUNT","RATE_DAILY","PERIOD"]
[355634878,1741415463488,-629.43,8.767e-05,2]
[355634879,1741415463499,-500.0,8.767e-05,2]
[355634880,1741415463509,-1042.99,8.767e-05,2]
[355634881,1741415463519,-1265.05,8.767e-05,2]
[355634882,1741415463529,-500.0,8.767e-05,2]
[355634883,1741415463539,-2782.82,8.767e-05,2]
[355634884,1741415463549,-500.0,8.767e-05,2]
[355634885,1741415463558,-500.0,8.767e-05,2]
[355634886,1741415463568,-247.3321376,8.767e-05,2]
[355634887,1741415463578,-500.0,8.767e-05,2]
[355634888,1741415463587,-880.95,8.767e-05,2]
[355634889,1741415463597,-9164.41,8.767e-05,2]
[355634890,1741415463607,-1706.87,8.767e-05,2]
[355634891,1741415463617,-607.46,8.767e-05,2]
[355634892,1741415463627,-500.0,8.767e-05,2]
[355634893,1741415463637,-500.0,8.767e-05,2]
[355634894,1741415463647,-1144.45,8.767e-05,2]
[355634895,1741415463656,-1869.88,8.767e-05,2]
[355634896,1741415463666,-2359.2,8.767e-05,2]
[355634897,1741415463676,-1672.14,8.767e-05,2]
[355634898,1741415463685,-2428.51,8.767e-05,2]
[355634899,1741415463696,-665.24,8.767e-05,2]
[355634900,1741415463706,-564.33226288,8.767e-05,2]
[355634901,1741415463716,-676.0,8.767e-05,2]
[355634902,1741415463725,-500.0,8.767e-05,2]
[355634903,1741415463735,-849.09,8.767e-05,2]
[355634904,1741415463744,-1315.19,8.767e-05,2]
[355634905,1741415463754,-1821.5,8.767e-05,2]
[355634906,1741415463764,-569.93,8.767e-05,2]
[355634907,1741415463774,-1364.57,8.767e-05,2]
[355634908,1741415463784,-2666.03,8.767e-05,2]
[355634909,1741415463794,-11076.72,8.767e-05,2]
[355634910,1741415463804,-500.0,8.767e-05,2]
[355634911,1741415463814,-2336.64,8.767e-05,2]
[355634912,1741415463823,-500.0,8.767e-05,2]
[355634913,1741415463833,-15323.96,8.767e-05,2]
[355634914,1741415463843,-1575.55,8.767e-05,2]
[355634915,1741415463852,-1411.04,8.767e-05,2]
[355634916,1741415463861,-3020.76,8.767e-05,2]
[355634917,1741415463871,-500.0,8.767e-05,2]
[355634918,1741415463880,-4124.22,8.767e-05,2]
[355634919,1741415463890,-500.0,8.767e-05,2]
[355634920,1741415463900,-500.0,8.767e-05,2]
[355634921,1741415463910,-3891.22,8.767e-05,2]
[355634922,1741415463920,-2288.95,8.767e-05,2]
[355634923,1741415463930,-3840.01,8.767e-05,2]
[355634924,1741415463940,-954.19,8.767e-05,2]
[355634925,1741415463950,-500.0,8.767e-05,2]
[355634926,1741415463960,-1481.21,8.767e-05,2]
[355634927,1741415463970,-1592.97,8.767e-05,2]
[355634928,1741415463979,-681.31,8.767e-05,2]
[355634929,1741415463988,-10735.35,8.767e-05,2]
[355634930,1741415463998,-1579.76,8.767e-05,2]
[355634931,1741415464007,-500.0,8.767e-05,2]
[355634932,1741415464017,-500.0,8.767e-05,2]
[355634933,1741415464027,-4536.17,8.767e-05,2]
[355634934,1741415464036,-1990.51,8.767e-05,2]
[355634935,1741415464046,-500.0,8.767e-05,2]
[355634936,1741415464055,-6311.23,8.767e-05,2]
[355634937,1741415464064,-4571.22,8.767e-05,2]
[355634938,1741415464074,-500.0,8.767e-05,2]
[355634939,1741415464084,-2093.65,8.767e-05,2]
[355634940,1741415464093,-5167.51,8.767e-05,2]
[355634941,1741415464103,-1659.95,8.767e-05,2]
[355634942,1741415464113,-1750.36,8.767e-05,2]
[355634943,1741415464126,-41942.54,8.767e-05,2]
[355634944,1741415464136,-500.0,8.767e-05,2]
[355634945,1741415464146,-1957.52,8.767e-05,2]
[355634946,1741415464155,-500.0,8.767e-05,2]
[355634947,1741415464167,-6064.31,8.767e-05,2]
[355634948,1741415464176,-6845.06,8.767e-05,2]
[355634949,1741415464187,-4136.93,8.767e-05,2]
[355634950,1741415464198,-842.81,8.767e-05,2]
[355634951,1741415464207,-697.59,8.767e-05,2]
[355634952,1741415464217,-500.0,8.767e-05,2]
[355634953,1741415464227,-500.0,8.767e-05,2]
[355634954,1741415464236,-1384.43,8.767e-05,2]
[355634955,1741415464246,-500.0,8.767e-05,2]
[355634956,1741415464255,-839.17,8.767e-05,2]
[355634957,1741415464265,-4184.06,8.767e-05,2]
[355634958,1741415464286,-5590.97,8.767e-05,2]
[355634959,1741415464302,-12727.92,8.767e-05,2]
[355634960,1741415464322,-2518.17,8.767e-05,2]
[355634961,1741415464340,-1200.08,8.767e-05,2]
[355634962,1741415464357,-1019.47,8.767e-05,2]
[355634963,1741415464377,-500.0,8.767e-05,2]
[355634964,1741415464395,-500.0,8.767e-05,2]
[355634965,1741415464417,-1180.46,8.767e-05,2]
[355634966,1741415464436,-3254.37,8.767e-05,2]
[355634967,1741415464453,-1671.31,8.767e-05,2]
[355634968,1741415464471,-239.55896902,8.767e-05,2]
[355634969,1741415464585,-500.0,8.219e-05,2]
[355634970,1741415464600,-2886.13103098,8.767e-05,2]
[355634971,1741415464616,-822.71,8.767e-05,2]
[355634972,1741415464632,-500.0,8.767e-05,2]
[355634973,1741415464648,-1742.24,8.767e-05,2]
[355634974,1741415464665,-921.75384801,8.767e-05,2]
[355634975,1741415464756,-5016.83615199,8.767e-05,2]
[355634976,1741415464772,-553.61838769,8.767e-05,2]
[355634977,1741415464834,-452.839995,8.767e-05,2]
[355634978,1741415904331,172.32,8.029e-05,2]
[355634979,1741415910205,1276.953,8.055e-05,2]
[355634980,1741415910275,185.62733776,8.055e-05,2]
[355634981,1741415937074,348.19,7.79e-05,2]
[355634999,1741416452616,8392.83,7.73e-05,2]
[355635000,1741416457860,150.83,7.73e-05,2]
[355635001,1741416458059,150.83,7.772e-05,2]
[355635002,1741416458267,150.83,7.815e-05,2]
[355635003,1741416458503,150.83,7.857e-05,2]
[355635004,1741416458667,150.83,7.899e-05,2]
[355635005,1741416459706,150.83,7.941e-05,2]
[355635006,1741416460121,150.83,7.983e-05,2]
[355635007,1741416460551,150.83,8.025e-05,2]
[355635008,1741416460617,150.83,8.068e-05,2]
[355635009,1741416514492,4396.03,7.662e-05,2]
[355635025,1741416555733,220.62,8.066e-05,2]
[355635026,1741416614157,400.0,0.00013015,25]
[355635034,1741416631851,-150.83,8.11e-05,2]
[355635035,1741416631861,-150.0,8.131e-05,2]
[355635036,1741416631871,-150.83,8.152e-05,2]
[355635037,1741416631880,-150.0,8.192e-05,2]
[355635038,1741416631890,-150.83,8.194e-05,2]
[355635039,1741416631899,-550.0,8.2e-05,2]
[355635040,1741416631909,-1460.70870811,8.209e-05,2]
[355635041,1741416631921,-4202.26423025,8.209e-05,2]
[355635042,1741416631930,-300.0,8.217e-05,2]
[355635043,1741416631939,-187.02936589,8.218e-05,2]
[355635044,1741416631949,-500.0,8.218e-05,2]
[355635045,1741416631959,-500.0,8.218e-05,2]
[355635046,1741416631971,-590.14934874,8.218e-05,2]
[355635047,1741416631980,-500.0,8.218e-05,2]
[355635048,1741416631990,-500.0,8.218e-05,2]
[355635049,1741416631999,-150.0,8.218e-05,2]
[355635050,1741416632008,-250500.34548739,8.218e-05,2]
[355635051,1741416632018,-512.83583511,8.219e-05,2]
[355635052,1741416632029,-508.64235919,8.219e-05,2]
[355635053,1741416632038,-433.76572882,8.219e-05,2]
[355635054,1741416632048,-505.82457437,8.219e-05,2]
[355635055,1741416632057,-502.78740085,8.219e-05,2]
[355635056,1741416632067,-504.56862812,8.219e-05,2]
[355635057,1741416632076,-234.668175,8.219e-05,2]
[355635058,1741416632086,-380.520373,8.219e-05,2]
[355635059,1741416632095,-500.0,8.219e-05,2]
[355635060,1741416632105,-500.0,8.219e-05,2]
[355635061,1741416632114,-500.0,8.219e-05,2]
[355635062,1741416632124,-164.47546,8.219e-05,2]
[355635063,1741416632133,-500.0,8.219e-05,2]
[355635064,1741416632143,-500.0,8.219e-05,2]
[355635065,1741416632153,-500.0,8.219e-05,2]
[355635066,1741416632162,-160.018307,8.219e-05,2]
[355635067,1741416632172,-500.0,8.219e-05,2]
[355635068,1741416632181,-500.0,8.219e-05,2]
[355635069,1741416632191,-924.18,8.219e-05,2]
[355635070,1741416632201,-500.0,8.219e-05,2]
[355635071,1741416632210,-500.0,8.219e-05,2]
[355635072,1741416632220,-500.0,8.219e-05,2]
[355635073,1741416632229,-500.0,8.219e-05,2]
[355635074,1741416632239,-500.0,8.219e-05,2]
[355635076,1741416632248,-502.87927712,8.219e-05,2]
[355635078,1741416632258,-500.0,8.219e-05,2]
[355635080,1741416632267,-500.0,8.219e-05,2]
[355635082,1741416632276,-699.62,8.219e-05,2]
[355635084,1741416632286,-500.0,8.219e-05,2]
[355635086,1741416632296,-500.0,8.219e-05,2]
[355635088,1741416632305,-859.92,8.219e-05,2]
[355635090,1741416632315,-500.0,8.219e-05,2]
[355635091,1741416632324,-500.0,8.219e-05,2]
[355635092,1741416632333,-990.77,8.219e-05,2]
[355635093,1741416632343,-500.0,8.219e-05,2]
[355635094,1741416632352,-500.0,8.219e-05,2]
[355635095,1741416632362,-500.0,8.219e-05,2]
[355635097,1741416632371,-500.0,8.219e-05,2]
[355635099,1741416632380,-500.0,8.219e-05,2]
[355635101,1741416632389,-500.0,8.219e-05,2]
[355635103,1741416632398,-500.0,8.219e-05,2]
[355635105,1741416632408,-502.02594642,8.219e-05,2]
[355635107,1741416632417,-500.0,8.219e-05,2]
[355635109,1741416632426,-500.0,8.219e-05,2]
[355635111,1741416632436,-764.8,8.219e-05,2]
[355635113,1741416632445,-500.0,8.219e-05,2]
[355635115,1741416632454,-1033.22,8.219e-05,2]
[355635117,1741416632463,-500.0,8.219e-05,2]
[355635119,1741416632472,-500.0,8.219e-05,2]
[355635121,1741416632481,-500.0,8.219e-05,2]
[355635123,1741416632491,-500.0,8.219e-05,2]
[355635125,1741416632505,-500.0,8.219e-05,2]
[355635128,1741416632515,-500.0,8.219e-05,2]
[355635131,1741416632524,-509.05137143,8.219e-05,2]
[355635133,1741416632534,-500.0,8.219e-05,2]
[355635135,1741416632545,-500.0,8.219e-05,2]
[355635137,1741416632554,-1154.68,8.219e-05,2]
[355635139,1741416632564,-1177.51,8.219e-05,2]
[355635141,1741416632575,-500.0,8.219e-05,2]
[355635143,1741416632584,-500.0,8.219e-05,2]
[355635144,1741416632593,-500.0,8.219e-05,2]
[355635145,1741416632603,-500.0,8.219e-05,2]
[355635146,1741416632613,-500.0,8.219e-05,2]
[355635147,1741416632623,-500.0,8.219e-05,2]
[355635148,1741416632632,-500.0,8.219e-05,2]
[355635149,1741416632642,-500.0,8.219e-05,2]
[355635150,1741416632651,-500.0,8.219e-05,2]
[355635151,1741416632661,-731.91,8.219e-05,2]
[355635152,1741416632670,-500.0,8.219e-05,2]
[355635153,1741416632680,-503.18634511,8.219e-05,2]
[355635154,1741416632689,-496.81771495,8.219e-05,2]
[355635155,1741416632698,-500.0,8.219e-05,2]
[355635156,1741416632708,-500.0,8.219e-05,2]
[355635157,1741416632717,-500.0,8.219e-05,2]
[355635158,1741416632726,-500.0,8.219e-05,2]
[355635159,1741416632736,-777.92,8.219e-05,2]
[355635160,1741416632745,-667.88,8.219e-05,2]
[355635161,1741416632755,-500.0,8.219e-05,2]
[355635162,1741416632764,-500.0,8.219e-05,2]
[355635163,1741416632774,-500.0,8.219e-05,2]
[355635164,1741416632783,-500.0,8.219e-05,2]
[355635165,1741416632795,-500.0,8.219e-05,2]
[355635166,1741416632806,-1149.41,8.219e-05,2]
[355635167,1741416632815,-996.73,8.219e-05,2]
[355635168,1741416632825,-500.0,8.219e-05,2]
[355635169,1741416632834,-500.0,8.219e-05,2]
[355635170,1741416632843,-500.0,8.219e-05,2]
[355635171,1741416632852,-500.0,8.219e-05,2]
[355635172,1741416632862,-165.503875,8.219e-05,2]
[355635173,1741416632871,-500.0,8.219e-05,2]
[355635174,1741416632882,-510.28709924,8.219e-05,2]
[355635175,1741416632891,-500.0,8.219e-05,2]
[355635176,1741416632901,-500.0,8.219e-05,2]
[355635177,1741416632911,-500.0,8.219e-05,2]
[355635178,1741416632921,-500.0,8.219e-05,2]
[355635179,1741416632930,-979.4,8.219e-05,2]
[355635180,1741416632939,-500.0,8.219e-05,2]
[355635181,1741416632949,-500.0,8.219e-05,2]
[355635182,1741416632960,-500.0,8.219e-05,2]
[355635183,1741416632969,-749.83,8.219e-05,2]
[355635184,1741416632978,-158.191225,8.219e-05,2]
[355635185,1741416632989,-500.0,8.219e-05,2]
[355635186,1741416632999,-500.0,8.219e-05,2]
[355635187,1741416633009,-500.0,8.219e-05,2]
[355635188,1741416633018,-500.0,8.219e-05,2]
[355635189,1741416633028,-295.49621497,8.219e-05,2]
[355635190,1741416633037,-647.26,8.219e-05,2]
[355635191,1741416633047,-964.61,8.219e-05,2]
[355635192,1741416633057,-625.3,8.219e-05,2]
[355635193,1741416633068,-517.53200862,8.219e-05,2]
[355635194,1741416633078,-519.7,8.219e-05,2]
[355635195,1741416633088,-500.0,8.219e-05,2]
[355635196,1741416633098,-592.38,8.219e-05,2]
[355635197,1741416633107,-501.98899067,8.219e-05,2]
[355635198,1741416633118,-500.0,8.219e-05,2]
[355635199,1741416633128,-500.0,8.219e-05,2]
[355635200,1741416633138,-1220.19,8.219e-05,2]
[355635201,1741416633148,-500.0,8.219e-05,2]
[355635202,1741416633158,-501.4540269,8.219e-05,2]
[355635203,1741416633168,-500.0,8.219e-05,2]
[355635204,1741416633178,-500.0,8.219e-05,2]
[355635205,1741416633188,-500.0,8.219e-05,2]
[355635206,1741416633198,-1298.81,8.219e-05,2]
[355635207,1741416633208,-500.0,8.219e-05,2]
[355635208,1741416633218,-500.0,8.219e-05,2]
[355635209,1741416633228,-580.12,8.219e-05,2]
[355635210,1741416633238,-504.56447273,8.219e-05,2]
[355635211,1741416633247,-503.50970243,8.219e-05,2]
[355635212,1741416633257,-1399.63,8.219e-05,2]
[355635213,1741416633267,-504.34481092,8.219e-05,2]
[355635214,1741416633276,-500.0,8.219e-05,2]
[355635215,1741416633286,-509.18222532,8.219e-05,2]
[355635216,1741416633296,-222.8057512,8.219e-05,2]
[355635217,1741416633306,-500.0,8.219e-05,2]
[355635218,1741416633315,-541.45,8.219e-05,2]
[355635219,1741416633325,-500.0,8.219e-05,2]
[355635220,1741416633335,-516.37523928,8.219e-05,2]
[355635221,1741416633344,-1392.07,8.219e-05,2]
[355635222,1741416633354,-1058.49,8.219e-05,2]
[355635223,1741416633364,-502.91550934,8.219e-05,2]
[355635224,1741416633551,-500.0,8.219e-05,2]
[355635225,1741416633562,-500.0,8.219e-05,2]
[355635226,1741416633573,-1250.4,8.219e-05,2]
[355635227,1741416633583,-500.0,8.219e-05,2]
[355635228,1741416633593,-500.0,8.219e-05,2]
[355635229,1741416633603,-500.0,8.219e-05,2]
[355635230,1741416633613,-500.0,8.219e-05,2]
[355635231,1741416633623,-1515.52,8.219e-05,2]
[355635232,1741416633632,-500.0,8.219e-05,2]
[355635233,1741416633642,-1127.73,8.219e-05,2]
[355635234,1741416633652,-1018.16,8.219e-05,2]
[355635235,1741416633662,-500.0,8.219e-05,2]
[355635236,1741416633671,-509.24324944,8.219e-05,2]
[355635237,1741416633681,-165.503875,8.219e-05,2]
[355635238,1741416633690,-825.98,8.219e-05,2]
[355635239,1741416633700,-977.89,8.219e-05,2]
[355635240,1741416633709,-1012.03,8.219e-05,2]
[355635241,1741416633719,-533.79,8.219e-05,2]
[355635242,1741416633729,-500.0,8.219e-05,2]
[355635243,1741416633738,-500.0,8.219e-05,2]
[355635244,1741416633748,-158.191225,8.219e-05,2]
[355635245,1741416633758,-739.1,8.219e-05,2]
[355635246,1741416633768,-500.0,8.219e-05,2]
[355635247,1741416633777,-500.0,8.219e-05,2]
[355635248,1741416633787,-500.0,8.219e-05,2]
[355635249,1741416633797,-500.0,8.219e-05,2]
[355635250,1741416633806,-695.79,8.219e-05,2]
[355635251,1741416633816,-628.78,8.219e-05,2]
[355635252,1741416633825,-1328.04,8.219e-05,2]
[355635253,1741416633835,-500.0,8.219e-05,2]
[355635254,1741416633845,-500.0,8.219e-05,2]
[355635255,1741416633854,-500.0,8.219e-05,2]
[355635256,1741416633864,-1150.04,8.219e-05,2]
[355635257,1741416633874,-500.0,8.219e-05,2]
[355635258,1741416633883,-500.0,8.219e-05,2]
[355635259,1741416633893,-500.86220362,8.219e-05,2]
[355635260,1741416633903,-1846.11,8.219e-05,2]
[355635261,1741416633914,-500.25460397,8.219e-05,2]
[355635262,1741416633924,-1294.03,8.219e-05,2]
[355635263,1741416633933,-500.0,8.219e-05,2]
[355635264,1741416633943,-504.37513002,8.219e-05,2]
[355635265,1741416633952,-500.0,8.219e-05,2]
[355635266,1741416633962,-627.08,8.219e-05,2]
[355635267,1741416633972,-500.0,8.219e-05,2]
[355635268,1741416633982,-500.0,8.219e-05,2]
[355635269,1741416633992,-500.0,8.219e-05,2]
[355635270,1741416634002,-500.0,8.219e-05,2]
[355635271,1741416634011,-716.77,8.219e-05,2]
[355635272,1741416634022,-500.0,8.219e-05,2]
[355635273,1741416634032,-500.0,8.219e-05,2]
[355635274,1741416634041,-500.0,8.219e-05,2]
[355635275,1741416634051,-500.0,8.219e-05,2]
[355635276,1741416634060,-500.0,8.219e-05,2]
[355635277,1741416634071,-500.0,8.219e-05,2]
[355635278,1741416634080,-1209.74,8.219e-05,2]
[355635279,1741416634090,-500.0,8.219e-05,2]
[355635280,1741416634099,-500.0,8.219e-05,2]
[355635281,1741416634108,-1030.98,8.219e-05,2]
[355635282,1741416634118,-500.0,8.219e-05,2]
[355635283,1741416634127,-500.0,8.219e-05,2]
[355635284,1741416634137,-501.76672398,8.219e-05,2]
[355635285,1741416634147,-500.0,8.219e-05,2]
[355635286,1741416634156,-500.0,8.219e-05,2]
[355635287,1741416634165,-500.0,8.219e-05,2]
[355635288,1741416634175,-500.0,8.219e-05,2]
[355635289,1741416634185,-1315.4,8.219e-05,2]
[355635290,1741416634195,-500.0,8.219e-05,2]
[355635291,1741416634205,-500.0,8.219e-05,2]
[355635292,1741416634215,-1456.52,8.219e-05,2]
[355635293,1741416634224,-867.7,8.219e-05,2]
[355635294,1741416634234,-500.0,8.219e-05,2]
[355635295,1741416634243,-753.47,8.219e-05,2]
[355635296,1741416634253,-1262.29,8.219e-05,2]
[355635297,1741416634263,-1187.0,8.219e-05,2]
[355635298,1741416634272,-1458.48,8.219e-05,2]
[355635299,1741416634282,-602.05434598,8.219e-05,2]
[355635300,1741416634292,-500.0,8.219e-05,2]
[355635301,1741416634301,-500.0,8.219e-05,2]
[355635302,1741416634311,-500.0,8.219e-05,2]
[355635303,1741416634320,-500.0,8.219e-05,2]
[355635304,1741416634329,-606.15,8.219e-05,2]
[355635305,1741416634339,-506.03526493,8.219e-05,2]
[355635306,1741416634349,-500.0,8.219e-05,2]
[355635307,1741416634358,-501.31095665,8.219e-05,2]
[355635308,1741416634367,-684.94,8.219e-05,2]
[355635309,1741416634377,-508.43878464,8.219e-05,2]
[355635310,1741416634387,-482.49560516,8.219e-05,2]
[355635311,1741416634397,-1584.46,8.219e-05,2]
[355635312,1741416634406,-1152.85,8.219e-05,2]
[355635313,1741416634416,-500.0,8.219e-05,2]
[355635314,1741416634425,-500.0,8.219e-05,2]
[355635315,1741416634435,-500.0,8.219e-05,2]
[355635316,1741416634444,-500.0,8.219e-05,2]
[355635317,1741416634454,-500.0,8.219e-05,2]
[355635318,1741416634464,-1835.46,8.219e-05,2]
[355635319,1741416634474,-500.0,8.219e-05,2]
[355635320,1741416634484,-500.0,8.219e-05,2]
[355635321,1741416634495,-500.0,8.219e-05,2]
[355635322,1741416634506,-399.66,8.219e-05,2]
[355635323,1741416634516,-500.0,8.219e-05,2]
[355635324,1741416634526,-500.0,8.219e-05,2]
[355635325,1741416634536,-970.17,8.219e-05,2]
[355635326,1741416634546,-509.1372711,8.219e-05,2]
[355635327,1741416634557,-500.0,8.219e-05,2]
[355635328,1741416634566,-500.0,8.219e-05,2]
[355635329,1741416634578,-500.0,8.219e-05,2]
[355635330,1741416634587,-1375.5,8.219e-05,2]
[355635331,1741416634597,-500.0,8.219e-05,2]
[355635332,1741416634606,-318.23,8.219e-05,2]
[355635333,1741416634616,-585.70900097,8.219e-05,2]
[355635334,1741416634626,-500.0,8.219e-05,2]
[355635335,1741416634635,-1026.86,8.219e-05,2]
[355635336,1741416634645,-165.503875,8.219e-05,2]
[355635337,1741416634657,-500.0,8.219e-05,2]
[355635338,1741416634668,-500.0,8.219e-05,2]
[355635339,1741416634680,-500.0,8.219e-05,2]
[355635340,1741416634693,-500.0,8.219e-05,2]
[355635341,1741416634704,-2041.72,8.219e-05,2]
[355635342,1741416634713,-500.0,8.219e-05,2]
[355635343,1741416634722,-500.0,8.219e-05,2]
[355635344,1741416634733,-943.38,8.219e-05,2]
[355635345,1741416634742,-500.0,8.219e-05,2]
[355635346,1741416634752,-500.0,8.219e-05,2]
[355635347,1741416634762,-1670.33,8.219e-05,2]
[355635348,1741416634771,-500.0,8.219e-05,2]
[355635349,1741416634781,-500.0,8.219e-05,2]
[355635350,1741416634791,-500.0,8.219e-05,2]
[355635351,1741416634801,-500.0,8.219e-05,2]
[355635352,1741416634810,-500.0,8.219e-05,2]
[355635353,1741416634820,-500.0,8.219e-05,2]
[355635354,1741416634829,-500.0,8.219e-05,2]
[355635355,1741416634839,-991.32,8.219e-05,2]
[355635356,1741416634848,-500.70318857,8.219e-05,2]
[355635357,1741416634858,-1037.41,8.219e-05,2]
[355635358,1741416634868,-500.0,8.219e-05,2]
[355635359,1741416634878,-584.80919172,8.219e-05,2]
[355635360,1741416634888,-500.0,8.219e-05,2]
[355635361,1741416634898,-775.11,8.219e-05,2]
[355635362,1741416634908,-158.191225,8.219e-05,2]
[355635363,1741416634917,-500.0,8.219e-05,2]
[355635364,1741416634927,-1315.89,8.219e-05,2]
[355635365,1741416634936,-500.0,8.219e-05,2]
[355635366,1741416634946,-500.0,8.219e-05,2]
[355635367,1741416634955,-500.0,8.219e-05,2]
[355635368,1741416634965,-500.0,8.219e-05,2]
[355635369,1741416634975,-500.0,8.219e-05,2]
[355635370,1741416634985,-500.0,8.219e-05,2]
[355635371,1741416634995,-1009.44,8.219e-05,2]
[355635372,1741416635004,-1954.84,8.219e-05,2]
[355635373,1741416635014,-1961.98,8.219e-05,2]
[355635374,1741416635023,-945.38,8.219e-05,2]
[355635375,1741416635032,-500.0,8.219e-05,2]
[355635376,1741416635042,-812.14,8.219e-05,2]
[355635377,1741416635051,-500.0,8.219e-05,2]
[355635378,1741416635060,-500.0,8.219e-05,2]
[355635379,1741416635070,-500.0,8.219e-05,2]
[355635380,1741416635079,-500.0,8.219e-05,2]
[355635381,1741416635088,-925.58,8.219e-05,2]
[355635382,1741416635098,-500.0,8.219e-05,2]
[355635383,1741416635107,-855.17,8.219e-05,2]
[355635384,1741416635117,-1387.0,8.219e-05,2]
[355635385,1741416635127,-500.0,8.219e-05,2]
[355635386,1741416635136,-500.0,8.219e-05,2]
[355635387,1741416635145,-784.92,8.219e-05,2]
[355635388,1741416635155,-500.0,8.219e-05,2]
[355635389,1741416635164,-500.0,8.219e-05,2]
[355635390,1741416635173,-545.14,8.219e-05,2]
[355635391,1741416635183,-1907.82,8.219e-05,2]
[355635392,1741416635192,-500.0,8.219e-05,2]
[355635393,1741416635201,-500.0,8.219e-05,2]
[355635394,1741416635210,-1072.13,8.219e-05,2]
[355635395,1741416635219,-1116.24,8.219e-05,2]
[355635396,1741416635228,-500.0,8.219e-05,2]
[355635397,1741416635239,-1223.38,8.219e-05,2]
[355635398,1741416635248,-312.62462361,8.219e-05,2]
[355635399,1741416635257,-500.0,8.219e-05,2]
[355635400,1741416635266,-500.0,8.219e-05,2]
[355635401,1741416635275,-500.0,8.219e-05,2]
[355635402,1741416635284,-500.0,8.219e-05,2]
[355635403,1741416635293,-500.0,8.219e-05,2]
[355635404,1741416635302,-500.0,8.219e-05,2]
[355635405,1741416635311,-1595.48,8.219e-05,2]
[355635406,1741416635320,-500.0,8.219e-05,2]
[355635407,1741416635329,-1383.06,8.219e-05,2]
[355635408,1741416635338,-1355.44,8.219e-05,2]
[355635409,1741416635347,-500.0,8.219e-05,2]
[355635410,1741416635356,-500.0,8.219e-05,2]
[355635411,1741416635365,-500.0,8.219e-05,2]
[355635412,1741416635375,-1864.0,8.219e-05,2]
[355635413,1741416635385,-500.0,8.219e-05,2]
[355635414,1741416635395,-851.82,8.219e-05,2]
[355635415,1741416635404,-1068.79,8.219e-05,2]
[355635416,1741416635413,-500.0,8.219e-05,2]
[355635417,1741416635422,-500.0,8.219e-05,2]
[355635418,1741416635432,-500.0,8.219e-05,2]
[355635419,1741416635441,-500.0,8.219e-05,2]
[355635420,1741416635451,-1267.33,8.219e-05,2]
[355635421,1741416635461,-1232.94,8.219e-05,2]
[355635422,1741416635470,-2350.71,8.219e-05,2]
[355635423,1741416635480,-500.0,8.219e-05,2]
[355635424,1741416635490,-553.54,8.219e-05,2]
[355635425,1741416635502,-500.0,8.219e-05,2]
[355635426,1741416635512,-500.0,8.219e-05,2]
[355635427,1741416635522,-500.0,8.219e-05,2]
[355635428,1741416635532,-500.0,8.219e-05,2]
[355635429,1741416635542,-918.53,8.219e-05,2]
[355635430,1741416635554,-500.0,8.219e-05,2]
[355635431,1741416635563,-1104.38,8.219e-05,2]
[355635432,1741416635573,-500.0,8.219e-05,2]
[355635433,1741416635583,-1478.12,8.219e-05,2]
[355635434,1741416635593,-500.0,8.219e-05,2]
[355635435,1741416635602,-500.0,8.219e-05,2]
[355635436,1741416635611,-500.0,8.219e-05,2]
[355635437,1741416635620,-500.0,8.219e-05,2]
[355635438,1741416635630,-502.13407626,8.219e-05,2]
[355635439,1741416635639,-687.53,8.219e-05,2]
[355635440,1741416635649,-500.0,8.219e-05,2]
[355635441,1741416635659,-500.0,8.219e-05,2]
[355635442,1741416635668,-865.66,8.219e-05,2]
[355635443,1741416635678,-500.0,8.219e-05,2]
[355635444,1741416635853,-1596.46,8.219e-05,2]
[355635445,1741416635863,-500.0,8.219e-05,2]
[355635446,1741416635872,-1375.11,8.219e-05,2]
[355635447,1741416635882,-1696.49,8.219e-05,2]
[355635448,1741416635891,-500.0,8.219e-05,2]
[355635449,1741416635900,-1772.28,8.219e-05,2]